bitfinex/quotes_SOLUSD_20240624
["timestamp","ask_amount","ask_price","bid_price","bid_amount"]
[1719209733174,1.6932,124.88,124.8,100.8468939]
[1719209733388,1.6932,124.88,124.81,0.17]
[1719209733565,1.6932,124.88,124.82,5.608]
[1719209733768,1.6932,124.88,124.83,0.34]
[1719209734080,1.6932,124.88,124.83,5.9474]
[1719209734390,1.6932,124.88,124.8,0.8468939]
[1719209734591,1.6932,124.88,124.81,0.34]
[1719209734972,1.6932,124.88,124.81,5.9485]
[1719209735712,1.6932,124.88,124.81,0.34]
[1719209736574,1.6932,124.88,124.8,0.8468939]
[1719209736790,19.39,124.87,124.8,0.8468939]
[1719209737092,2.8180883,124.86,124.8,0.8468939]
[1719209737505,0.17,124.85,124.8,0.8468939]
[1719209739427,1.6932,124.84,124.8,0.8468939]
[1719209739588,4.3412883,124.84,124.8,0.8468939]
[1719209739997,19.39,124.83,124.74,385.8]
[1719209740204,19.39,124.83,124.71,14.0323]
[1719209740520,4.3412883,124.84,124.72,100.0]
[1719209740700,1.6932,124.84,124.75,5.6112]
[1719209741194,1.6932,124.84,124.74,5.6114]
[1719209741396,1.6932,124.84,124.75,0.34]
[1719209741813,1.6932,124.84,124.75,5.9511]
[1719209742487,4.3412883,124.84,124.75,0.34]
[1719209742689,1.6932,124.84,124.75,0.34]
[1719209743409,1.6932,124.84,124.77,5.61]
[1719209743616,1.6932,124.84,124.78,0.34]
[1719209744214,1.6932,124.84,124.79,5.6093]
[1719209744797,1.6932,124.84,124.78,5.9496]
[1719209745223,20.2363,124.87,124.8,5.6089]
[1719209746221,0.8463,124.87,124.8,5.6089]
[1719209746420,0.8463,124.87,124.81,0.17]
[1719209746625,6.35200907,124.97,124.81,0.17]
[1719209746626,0.8463,124.9,124.81,100.34]
[1719209746802,0.8463,124.9,124.84,5.607]
[1719209746995,0.8463,124.9,124.85,5.9467]
[1719209747323,0.8463,124.9,124.86,0.17]
[1719209747491,0.8463,124.9,124.86,0.34]
[1719209747697,0.8463,124.96,124.86,5.9462]
[1719209748208,0.8463,124.96,124.86,0.34]
[1719209748709,0.8463,124.96,124.85,0.34]
[1719209748911,19.39,124.95,124.85,0.34]
[1719209749428,0.17,124.94,124.85,0.34]
[1719209749723,0.34,124.94,124.85,5.9467]
[1719209750303,0.34,124.94,124.85,0.34]
[1719209750724,2.9880883,124.94,124.81,19.39]
[1719209750897,20.2363,124.93,124.82,0.17]
[1719209751229,2.9880883,124.92,124.82,5.6077]
[1719209751421,20.2363,124.91,124.8,264.6088]
[1719209751628,2.9880883,124.9,124.8,264.6088]
[1719209752529,0.34,124.9,124.81,0.17]
[1719209752720,0.34,124.9,124.8,259.0]
[1719209752721,0.8463,124.89,124.8,259.0]
[1719209752903,19.39,124.88,124.78,5.6097]
[1719209753099,19.39,124.88,124.79,5.6094]
[1719209753927,0.8463,124.89,124.82,5.6079]
[1719209754515,0.8463,124.89,124.83,5.6075]
[1719209755108,0.8463,124.89,124.84,5.777]
[1719209755433,0.8463,124.89,124.84,5.607]
[1719209755614,0.8463,124.89,124.85,5.7764]
[1719209755814,0.8463,124.89,124.85,5.6064]
[1719209756921,0.8463,124.89,124.84,0.34]
[1719209756922,0.8463,124.89,124.84,5.947]
[1719209757123,0.8463,124.89,124.84,0.34]
[1719209757510,0.8463,124.89,124.83,0.34]
[1719209757810,22.84,124.88,124.74,19.39]
[1719209758003,2.6480883,124.87,124.71,5.6129]
[1719209758204,2.9880883,124.87,124.71,5.6129]
[1719209758615,22.67,124.84,124.71,5.6129]
[1719209758818,2.9880883,124.83,124.71,5.6129]
[1719209759419,2.6480883,124.82,124.68,7.18817432]
[1719209759725,2.6480883,124.82,124.68,0.8468939]
[1719209759726,22.67,124.76,124.68,0.8468939]
[1719209759926,2.8180883,124.75,124.68,0.8468939]
[1719209760131,0.17,124.74,124.68,0.8468939]
[1719209761038,0.17,124.74,124.66,4000.0]
[1719209761039,22.67,124.72,124.66,4000.0]
[1719209761227,2.8180883,124.71,124.66,4000.0]
[1719209761535,22.67,124.73,124.66,4000.0]
[1719209761710,2.9880883,124.72,124.66,4000.0]
[1719209762424,22.67,124.73,124.66,4000.0]
[1719209762728,2.6480883,124.79,124.66,4000.0]
[1719209764126,0.17,124.78,124.66,4000.0]
[1719209764433,2.6480883,124.77,124.66,4000.0]
[1719209764635,2.9880883,124.76,124.66,4000.0]
[1719209764933,0.17,124.75,124.66,4000.0]
[1719209766918,0.17,124.76,124.67,0.17]
[1719209767123,0.17,124.77,124.66,4000.0]
[1719209767331,0.17,124.78,124.66,4000.0]
[1719209767836,22.67,124.76,124.66,4000.0]
[1719209768019,2.6480883,124.75,124.66,4000.0]
[1719209768334,0.17,124.74,124.66,4000.0]
[1719209768541,0.34,124.74,124.66,4000.0]
[1719209769230,2.9880883,124.75,124.66,4000.0]
[1719209769543,0.34,124.75,124.66,4000.0]
[1719209770740,0.17,124.75,124.66,4000.0]
[1719209770940,2.6480883,124.79,124.67,5.6147]
[1719209771117,2.6480883,124.79,124.68,5.9543]
[1719209771846,2.6480883,124.79,124.68,0.34]
[1719209772843,2.6480883,124.79,124.66,4000.0]
[1719209773052,2.6480883,124.79,124.67,0.34]
[1719209773429,2.6480883,124.79,124.67,5.9545]
[1719209773811,22.67,124.8,124.68,5.6141]
[1719209774012,22.67,124.8,124.69,0.34]
[1719209774619,22.67,124.8,124.69,5.9538]
[1719209774830,22.67,124.8,124.69,0.34]
[1719209775032,22.67,124.8,124.68,5.954]
[1719209775234,2.6480883,124.83,124.7,5.6131]
[1719209775446,2.6480883,124.85,124.71,0.17]
[1719209775737,45.34,124.86,124.71,0.17]
[1719209775738,22.67,124.82,124.71,0.17]
[1719209775942,2.6480883,124.84,124.72,5.6125]
[1719209776149,2.6480883,124.84,124.73,0.17]
[1719209776332,2.6480883,124.85,124.73,5.952]
[1719209776538,2.6480883,124.85,124.74,5.6116]
[1719209776844,2.6480883,124.88,124.75,5.9511]
[1719209777150,2.6480883,124.88,124.75,0.34]
[1719209777444,2.6480883,124.88,124.75,5.9509]
[1719209778248,2.6480883,124.88,124.75,0.34]
[1719209778437,22.67,124.88,124.74,0.34]
[1719209778763,2.6480883,124.87,124.74,0.34]
[1719209778920,2.6480883,124.87,124.73,20.34]
[1719209779226,22.67,124.88,124.75,5.611]
[1719209779438,2.6480883,124.87,124.76,0.34]
[1719209780025,2.6480883,124.87,124.76,0.17]
[1719209780246,2.6480883,124.87,124.72,5.6124]
[1719209780546,0.34,124.86,124.72,5.6124]
[1719209780917,22.67,124.84,124.68,100.0]
[1719209781120,0.17,124.83,124.67,70.09528192]
[1719209781323,0.34,124.83,124.7,5.6134]
[1719209781543,0.34,124.83,124.71,5.6128]
[1719209781751,2.9880883,124.83,124.73,5.6119]
[1719209781926,2.9880883,124.83,124.72,5.6123]
[1719209782544,2.9880883,124.83,124.71,5.9528]
[1719209782743,0.34,124.83,124.71,5.9528]
[1719209782932,0.17,124.82,124.71,5.9528]
[1719209783235,2.9880883,124.84,124.72,5.6125]
[1719209783960,2.9880883,124.84,124.71,0.34]
[1719209783961,2.9880883,124.84,124.67,22.03528192]
[1719209784245,2.9880883,124.84,124.67,21.2505]
[1719209784246,22.67,124.82,124.67,21.2505]
[1719209784456,2.9880883,124.81,124.68,5.6143]
[1719209785057,2.9880883,124.81,124.69,5.6138]
[1719209785227,2.9880883,124.81,124.7,5.6134]
[1719209785427,0.34,124.81,124.71,5.6126]
[1719209785657,2.8180883,124.81,124.72,0.34]
[1719209786751,2.8180883,124.81,124.71,0.34]
[1719209787657,0.17,124.8,124.7,0.34]
[1719209788154,0.17,124.8,124.68,5.6142]
[1719209788348,0.17,124.8,124.67,21.2506]
[1719209788650,0.17,124.8,124.67,15.6361]
[1719209788957,0.17,124.8,124.69,5.6137]
[1719209789451,0.17,124.8,124.71,5.6129]
[1719209789653,0.17,124.8,124.7,5.7832]
[1719209789839,0.17,124.8,124.71,0.17]
[1719209790356,0.17,124.8,124.7,0.34]
[1719209790849,0.17,124.8,124.68,5.6142]
[1719209791048,0.17,124.8,124.66,4359.0]
[1719209791351,0.17,124.8,124.68,5.614]
[1719209791555,0.17,124.8,124.66,4259.0]
[1719209792152,0.17,124.8,124.67,0.17]
[1719209792451,0.17,124.8,124.68,5.614]
[1719209792653,0.17,124.8,124.69,0.17]
[1719209792852,0.17,124.8,124.67,5.6146]
[1719209794159,22.67,124.79,124.66,4000.0]
[1719209794468,2.9880883,124.78,124.66,4000.0]
[1719209796060,2.9880883,124.78,124.66,4005.6152]
[1719209796258,2.6480883,124.78,124.67,0.17]
[1719209797252,2.6480883,124.78,124.66,4000.0]
[1719209797630,22.67,124.67,124.66,3762.58]
[1719209797950,2.8180883,124.67,124.66,3704.27180134]
[1719209798149,2.9880883,124.67,124.66,3624.8914048]
[1719209798350,35.1726413,124.67,124.66,3596.4114048]
[1719209798654,35.1726413,124.67,124.66,3496.9714048]
[1719209798834,80.1726413,124.67,124.66,3478.81769965]
[1719209799139,80.1726413,124.67,124.66,3443.21769965]
[1719209799334,35.1726413,124.67,124.66,3407.61769965]
[1719209799570,35.1726413,124.67,124.66,3364.89769965]
[1719209799762,35.1726413,124.67,124.66,3343.53769965]
[1719209800058,35.1726413,124.67,124.66,3329.29769965]
[1719209802150,34.8326413,124.67,124.66,3329.29769965]
[1719209802338,2.6480883,124.67,124.66,3329.29769965]
[1719209803257,2.6480883,124.73,124.66,3329.29769965]
[1719209803455,32.171308,124.7,124.66,3329.29769965]
[1719209803655,2.6480883,124.69,124.66,3329.29769965]
[1719209804168,0.17,124.68,124.66,3329.29769965]
[1719209804357,2.9880883,124.68,124.66,3329.29769965]
[1719209804747,0.34,124.68,124.66,3329.29769965]
[1719209804948,2.9880883,124.69,124.66,3329.29769965]
[1719209805170,2.6480883,124.68,124.66,3329.29769965]
[1719209805341,0.34,124.67,124.66,3329.29769965]
[1719209811970,0.34,124.67,124.66,3125.77769965]
[1719209812149,0.34,124.67,124.66,3084.75769965]
[1719209812346,45.34,124.67,124.66,3077.63769965]
[1719209812547,45.34,124.67,124.66,3067.86961135]
[1719209812948,45.34,124.67,124.66,3060.74961135]
[1719209813147,45.34,124.67,124.66,3046.50961135]
[1719209813458,46.76914258,124.67,124.66,3032.26961135]
[1719209813658,46.76914258,124.67,124.66,3018.02961135]
[1719209813974,46.76914258,124.67,124.66,3003.42961135]
[1719209814367,46.76914258,124.67,124.66,2996.30961135]
[1719209814568,46.76914258,124.67,124.66,2989.18961135]
[1719209814758,46.76914258,124.67,124.66,2778.54961135]
[1719209815069,46.76914258,124.67,124.66,2764.30961135]
[1719209815285,46.76914258,124.67,124.66,2757.18961135]
[1719209815572,46.76914258,124.67,124.66,2750.06961135]
[1719209815776,46.76914258,124.67,124.66,2735.82961135]
[1719209815962,46.76914258,124.67,124.66,2728.70961135]
[1719209816174,1.59914258,124.67,124.66,2721.58961135]
[1719209816351,1.42914258,124.67,124.66,2721.58961135]
[1719209816551,32.170328,124.7,124.66,2721.58961135]
[1719209816773,33.59947058,124.7,124.66,2721.58961135]
[1719209817661,1.59914258,124.69,124.66,2721.58961135]
[1719209817860,0.17,124.68,124.66,2721.58961135]
[1719209818282,1.59914258,124.69,124.66,2721.58961135]
[1719209819078,1.42914258,124.68,124.66,2721.58961135]
[1719209819257,0.17,124.67,124.66,2721.58961135]
[1719209819851,0.34,124.67,124.66,2721.58961135]
[1719209820581,0.34,124.67,124.66,2721.22961135]
[1719209820752,23.01,124.67,124.66,2716.22961135]
[1719209820952,68.01,124.67,124.66,2716.22961135]
[1719209821152,68.01,124.67,124.66,2713.81566572]
[1719209821461,68.01,124.67,124.66,2708.99172009]
[1719209821671,68.01,124.67,124.66,2505.47172009]
[1719209821860,68.01,124.67,124.66,2500.63777446]
[1719209822063,68.01,124.67,124.66,2486.50845364]
[1719209822364,68.01,124.67,124.66,2483.73450801]
[1719209822982,68.01,124.67,124.66,2481.32056238]
[1719209823158,68.01,124.67,124.66,2458.02661676]
[1719209823553,68.01,124.67,124.66,2455.61189432]
[1719209823976,68.01,124.67,124.66,2453.19717188]
[1719209824176,68.01,124.67,124.66,2450.78244944]
[1719209824665,68.01,124.67,124.66,2448.007727]
[1719209825375,68.01,124.67,124.66,2433.627727]
[1719209826080,68.01,124.67,124.66,2431.21300456]
[1719209826264,68.01,124.67,124.66,2428.79828212]
[1719209827583,68.01,124.67,124.66,2428.61828212]
[1719209827750,76.36739615,124.67,124.66,2428.61828212]
[1719209828890,76.36739615,124.67,124.66,2370.15233799]
[1719209829387,76.36739615,124.67,124.66,2367.73756847]
[1719209829598,76.36739615,124.67,124.66,2365.32279895]
[1719209830170,76.36739615,124.67,124.66,2362.92279895]
[1719209831203,76.36739615,124.67,124.66,2298.42768792]
[1719209831485,176.36739615,124.67,124.66,2298.42768792]
[1719209831784,176.36739615,124.67,124.66,2296.01257689]
[1719209832195,176.36739615,124.67,124.66,2293.61257689]
[1719209832492,76.36739615,124.67,124.66,2291.19746586]
[1719209832699,176.36739615,124.67,124.66,2288.78235483]
[1719209833208,76.36739615,124.67,124.66,2286.36661365]
[1719209833492,76.36739615,124.67,124.66,2283.96661365]
[1719209833870,224.42739615,124.67,124.66,2261.55087247]
[1719209834193,224.42739615,124.67,124.66,2259.15087247]
[1719209834379,224.42739615,124.67,124.66,2235.29778303]
[1719209834688,224.42739615,124.67,124.66,2232.88204185]
[1719209835073,224.42739615,124.67,124.66,2230.46630067]
[1719209835477,254.42739615,124.67,124.66,2158.34848759]
[1719209835674,254.42739615,124.67,124.66,2153.1244343]
[1719209835888,254.42739615,124.67,124.66,2131.33379312]
[1719209836303,254.42739615,124.67,124.66,2117.63917945]
[1719209836603,254.42739615,124.67,124.66,2112.80848529]
[1719209837109,266.04412709,124.67,124.66,2081.73908529]
[1719209837400,266.04412709,124.67,124.66,2076.90739113]
[1719209837698,266.04412709,124.67,124.66,2072.07469698]
[1719209837997,266.04412709,124.67,124.66,2069.65869698]
[1719209838197,266.04412709,124.67,124.66,2067.25869698]
[1719209838377,266.04412709,124.67,124.66,2064.84339697]
[1719209838580,266.04412709,124.67,124.66,2060.02639698]
[1719209838779,220.70412709,124.67,124.66,2057.61070282]
[1719209839007,172.64412709,124.67,124.66,2057.61070282]
[1719209839294,120.70412709,124.67,124.66,2054.83500866]
[1719209839503,72.64412709,124.67,124.66,2054.83500866]
[1719209839802,172.64412709,124.67,124.66,2054.83500866]
[1719209840103,220.70412709,124.67,124.66,2052.41926748]
[1719209840471,265.70412709,124.67,124.66,2050.72926748]
[1719209840670,72.64412709,124.67,124.66,2050.72926748]
[1719209840896,67.31012709,124.67,124.66,2050.72926748]
[1719209841108,36.28273094,124.67,124.66,2050.72926748]
[1719209841299,30.0,124.67,124.66,2050.72926748]
[1719209841488,34.09914258,124.68,124.66,2050.72926748]
[1719209842901,32.67,124.68,124.66,2050.72926748]
[1719209843414,1.53286566,124.67,124.66,2050.72926748]
[1719209845823,46.53286566,124.67,124.66,2050.72926748]
[1719209846492,1.53286566,124.67,124.66,2050.72926748]
[1719209847087,24.20286566,124.67,124.66,2050.72926748]
[1719209848901,69.20286566,124.67,124.66,2050.72926748]
[1719209849710,269.20286566,124.67,124.66,2047.19217561]
[1719209850399,69.20286566,124.67,124.66,2047.19217561]
[1719209851489,24.20286566,124.67,124.66,2047.19217561]
[1719209854427,69.20286566,124.67,124.66,2047.19217561]
[1719209855111,117.26286566,124.67,124.66,2047.19217561]
[1719209855914,125.61986721,124.67,124.66,2047.19217561]
[1719209858298,125.61986721,124.67,124.66,2032.62217561]
[1719209858511,225.61986721,124.67,124.66,2032.62217561]
[1719209859016,225.61986721,124.67,124.66,2030.20701752]
[1719209859319,125.61986721,124.67,124.66,2030.20701752]
[1719209860313,125.61986721,124.67,124.66,2027.79185943]
[1719209861326,125.61986721,124.67,124.66,2010.79770134]
[1719209861524,102.94986721,124.67,124.66,2010.79770134]
[1719209861690,57.94986721,124.67,124.66,2010.79770134]
[1719209862015,57.94986721,124.67,124.66,1994.32770134]
[1719209863708,9.88986721,124.67,124.66,1994.32770134]
[1719209863904,54.88986721,124.67,124.66,1994.32770134]
[1719209864210,1.53286566,124.67,124.66,1994.32770134]
[1719209867041,32.170328,124.7,124.66,1994.32770134]
[1719209868514,268.3,124.73,124.66,1994.32770134]
[1719209868910,32.178459,124.72,124.66,1994.32770134]
[1719209869228,10.0,124.73,124.66,1994.32770134]
[1719209869647,42.174056,124.73,124.66,1994.32770134]
[1719209870219,32.174056,124.73,124.66,1994.32770134]
[1719209871024,22.67,124.74,124.66,1994.32770134]
[1719209871302,32.172625,124.73,124.66,1994.32770134]
[1719209873826,42.172625,124.73,124.66,1994.32770134]
[1719209874232,32.172625,124.73,124.66,1994.32770134]
[1719209874626,42.172625,124.73,124.66,1994.32770134]
[1719209878721,32.172625,124.73,124.66,1994.32770134]
[1719209881716,10.0,124.76,124.66,1994.32770134]
[1719209882114,19.52,124.72,124.67,27.7279]
[1719209882936,32.170721,124.75,124.67,27.7279]
[1719209884665,32.170721,124.75,124.68,28.4241]
[1719209884941,32.170721,124.75,124.7,21.3903]
[1719209885328,32.170721,124.75,124.71,8.3828]
[1719209886248,10.644621,124.75,124.71,8.3828]
[1719209886720,18.35507832,124.82,124.71,8.3828]
[1719209887146,32.155886,124.81,124.71,8.3828]
[1719209887815,10.0,124.82,124.72,28.5885]
[1719209888212,42.153018,124.82,124.73,8.2044]
[1719209888751,32.153018,124.82,124.73,8.2044]
[1719209889723,32.153018,124.82,124.75,5.0]
[1719209889934,10.0,124.87,124.76,19.8104]
[1719209890239,20.6644,124.86,124.76,19.8104]
[1719209890740,20.6644,124.86,124.77,7.7969]
[1719209892248,258.3,124.93,124.82,28.9596]
[1719209892557,258.3,124.93,124.83,8.1542]
[1719209893552,258.3,124.93,124.85,7.7573]
[1719209895050,258.3,124.93,124.85,7.1573]
[1719209895828,20.8665,124.96,124.86,20.3346]
[1719209896133,10.0,125.03,124.86,20.3346]
[1719209896337,10.0,125.0,124.86,20.3346]
[1719209896952,21.6077939,124.99,124.86,20.3346]
[1719209897160,31.6077939,124.99,124.86,20.3346]
[1719209897856,45.0,124.98,124.86,20.3346]
[1719209898059,45.0,124.98,124.87,7.7624]
[1719209898760,31.6077939,124.99,124.87,7.7624]
[1719209898926,31.6077939,124.99,124.9,5.0]
[1719209899858,31.6077939,124.99,124.91,29.9162]
[1719209899859,0.8468939,124.99,124.91,29.9162]
[1719209901038,20.3346,125.02,124.9,5.0]
[1719209901242,8.34679109,125.04,124.95,7.8679]
[1719209901460,10.0,125.15,124.95,7.8679]
[1719209901634,21.1814939,125.12,124.95,7.8679]
[1719209901965,0.8468939,125.12,124.95,7.8679]
[1719209902264,10.0,125.11,124.95,7.8679]
[1719209902439,10.0,125.09,124.95,7.8679]
[1719209902641,10.0,125.06,124.95,7.8679]
[1719209903246,10.0,125.04,124.95,7.8679]
[1719209904043,10.0,125.04,124.96,45.0]
[1719209904248,10.0,125.06,124.96,45.0]
[1719209904685,0.8468939,125.12,124.97,8.3821]
[1719209904841,10.8468939,125.12,124.98,45.0]
[1719209905041,10.0,125.08,124.97,8.3821]
[1719209905336,10.0,125.1,124.97,8.3821]
[1719209905763,10.0,125.08,124.97,8.3821]
[1719209906557,10.0,125.08,124.98,45.0]
[1719209906864,10.0,125.1,124.98,45.0]
[1719209907569,10.8468939,125.12,124.99,20.3461]
[1719209907776,10.8468939,125.12,125.0,45.0]
[1719209908142,0.8468939,125.12,125.03,8.8091]
[1719209908337,0.8468939,125.12,125.04,45.0]
[1719209908877,0.8468939,125.12,125.03,8.8091]
[1719209909040,10.0,125.1,125.03,8.8091]
[1719209909245,0.8468939,125.12,125.03,8.8091]
[1719209910174,10.8468939,125.12,125.03,8.8091]
[1719209910343,45.0,125.11,125.03,8.8091]
[1719209912455,10.8468939,125.12,125.03,8.8091]
[1719209912657,0.8468939,125.12,125.03,8.8091]
[1719209912883,0.8468939,125.12,125.04,45.0]
[1719209913269,5.8468939,125.14,125.04,45.0]
[1719209913691,12.12066311,125.16,125.04,45.0]
[1719209914060,5.8468939,125.16,125.04,45.0]
[1719209917358,45.0,125.15,125.04,45.0]
[1719209918590,45.0,125.15,125.03,8.8091]
[1719209918899,5.8468939,125.14,125.03,8.8091]
[1719209919188,45.0,125.13,125.03,8.8091]
[1719209919977,5.8468939,125.12,125.03,8.8091]
[1719209920292,45.0,125.13,125.03,8.8091]
[1719209920587,45.0,125.14,125.03,8.8091]
[1719209921490,5.8468939,125.13,125.03,8.8091]
[1719209923279,5.8468939,125.15,125.03,8.8091]
[1719209923483,29.6461,125.14,124.94,8.4069]
[1719209923698,5.8468939,125.06,124.94,8.4069]
[1719209923872,105.8468939,125.06,124.94,8.4069]
[1719209924280,5.8468939,125.04,124.94,8.4069]
[1719209924497,5.8468939,125.02,124.94,8.4069]
[1719209924676,45.0,125.01,124.94,8.4069]
[1719209925365,5.8468939,125.04,124.94,8.4069]
[1719209925670,45.0,125.03,124.94,8.4069]
[1719209926097,30.0,124.98,124.94,8.4069]
[1719209926996,30.0,124.98,124.9,8.1139]
[1719209927296,35.8468939,124.98,124.9,8.1139]
[1719209928568,45.0,124.97,124.9,8.1139]
[1719209928768,30.0,124.95,124.9,8.1139]
[1719209931500,5.8468939,124.94,124.9,8.1139]
[1719209931701,30.0,124.91,124.85,29.1611]
[1719209933502,5.8468939,124.96,124.85,29.1611]
[1719209934293,270.65183388,124.98,124.85,29.1611]
[1719209935295,45.0,124.97,124.85,29.1611]
[1719209937274,279.00043101,124.98,124.85,29.1611]
[1719209937882,29.1611,124.97,124.85,29.1611]
[1719209938290,5.8468939,124.96,124.85,29.1611]
[1719209938707,29.1611,124.97,124.85,29.1611]
[1719209939880,29.1611,124.97,124.86,8.5834]
[1719209941002,29.1611,124.97,124.88,8.5834]
[1719209941192,258.3,124.98,124.88,8.5834]
[1719209942999,5.8468939,124.98,124.88,8.5834]
[1719209943206,45.0,124.97,124.88,8.5834]
[1719209943398,8.34808088,124.98,124.88,8.5834]
[1719209945987,14.19497478,124.98,124.88,8.5834]
[1719209946297,45.0,124.97,124.88,8.5834]
[1719209947816,14.19497478,124.98,124.88,8.5834]
[1719209949707,45.0,124.97,124.88,8.5834]
[1719209952007,5.8468939,124.96,124.88,8.5834]
[1719209952192,45.0,124.95,124.88,8.5834]
[1719209953497,53.34250444,124.95,124.88,8.5834]
[1719209955202,5.8468939,124.93,124.88,8.5834]
[1719209955891,45.0,124.92,124.88,8.5834]
[1719209956715,14.18939834,124.95,124.88,8.5834]
[1719209956894,45.0,124.94,124.88,8.5834]
[1719209958413,5.8468939,124.93,124.88,8.5834]
[1719209958718,45.0,124.92,124.88,8.5834]
[1719209959494,5.8468939,124.93,124.88,8.5834]
[1719209959910,8.342505,124.92,124.88,8.5834]
[1719209960721,8.342505,124.92,124.8,0.8468939]
[1719209960722,8.342505,124.92,124.84,20.8154]
[1719209961015,45.0,124.91,124.85,8.5519]
[1719209961903,5.8468939,124.9,124.85,8.5519]
[1719209962219,45.0,124.89,124.85,8.5519]
[1719209963994,53.34194815,124.89,124.85,8.5519]
[1719209964403,5.8468939,124.88,124.81,29.9113]
[1719209964712,53.34194815,124.89,124.81,29.9113]
[1719209964920,5.8468939,124.88,124.81,29.9113]
[1719209965118,45.0,124.87,124.81,29.9113]
[1719209966797,5.8468939,124.88,124.81,29.9113]
[1719209967322,8.34194815,124.89,124.81,29.9113]
[1719209967721,5.8468939,124.9,124.81,29.9113]
[1719209968616,272.901672,124.91,124.81,29.9113]
[1719209968617,266.63874388,124.91,124.81,29.9113]
[1719209968802,45.0,124.9,124.81,29.9113]
[1719209969121,50.8468939,124.9,124.81,29.9113]
[1719209969904,266.63874388,124.91,124.81,29.9113]
[1719209971124,5.8468939,124.89,124.81,29.9113]
[1719209971302,45.0,124.88,124.81,29.9113]
[1719209975623,272.48563778,124.91,124.81,29.9113]
[1719209976731,372.48563778,124.91,124.81,29.9113]
[1719209977107,272.48563778,124.91,124.81,29.9113]
[1719209977524,45.0,124.9,124.81,29.9113]
[1719209978614,5.8468939,124.89,124.81,29.9113]
[1719209978808,45.0,124.88,124.81,29.9113]
[1719209979009,5.8468939,124.89,124.81,29.9113]
[1719209979435,45.0,124.88,124.81,29.9113]
[1719209979731,45.0,124.9,124.81,29.9113]
[1719209980915,272.48882058,124.91,124.81,29.9113]
[1719209982806,266.64192668,124.91,124.82,8.3963]
[1719209983026,258.3,124.91,124.82,8.3963]
[1719209984635,5.8468939,124.94,124.82,8.3963]
[1719209985134,14.19082667,124.94,124.82,8.3963]
[1719209986124,8.34393277,124.94,124.84,8.5082]
[1719209986328,21.478,124.93,124.84,8.5082]
[1719209987233,21.478,124.93,124.86,8.1057]
[1719209988116,21.478,124.93,124.86,8.59345814]
[1719209988335,21.478,124.93,124.87,0.48771907]
[1719209988555,21.478,124.93,124.88,8.6675]
[1719209988834,21.478,124.93,124.89,21.2751]
[1719209990916,14.83036115,124.98,124.89,21.2751]
[1719209991118,8.3422102,124.98,124.9,8.7009]
[1719209991314,21.2751,124.97,124.9,8.7009]
[1719210001746,21.2751,124.97,124.91,20.5802]
[1719210001930,5.8468939,125.05,124.92,8.5758]
[1719210002125,258.3,125.06,124.92,8.5758]
[1719210002316,20.5802,124.99,124.93,29.156]
[1719210007943,5.8468939,125.09,124.96,8.203]
[1719210008943,12.37276039,125.09,124.96,8.203]
[1719210009239,6.52586649,125.09,124.96,8.203]
[1719210009628,21.1102,125.1,124.96,8.203]
[1719210010435,266.62250986,125.11,124.98,20.1977]
[1719210010640,258.3,125.11,124.99,8.0615]
[1719210010951,264.72304162,125.11,124.99,8.0615]
[1719210011333,264.72304162,125.11,125.0,20.1977]
[1719210011531,6.42304162,125.11,125.01,8.0615]
[1719210011729,26.8702939,125.14,125.01,8.0615]
[1719210011935,35.19400913,125.14,125.01,8.0615]
[1719210012633,45.0,125.13,125.01,8.0615]
[1719210012950,5.8468939,125.11,125.01,8.0615]
[1719210013128,5.8468939,125.08,125.01,8.0615]
[1719210013331,45.0,125.07,125.01,8.0615]
[1719210016237,30.0,124.99,124.93,29.3339]
[1719210017855,30.0,124.99,124.93,7.9532]
[1719210018144,45.0,124.98,124.93,7.9532]
[1719210018454,30.0,124.97,124.93,7.9532]
[1719210019335,30.0,124.97,124.9,8.5411]
[1719210019536,45.0,124.96,124.9,8.5411]
[1719210019735,30.0,124.95,124.9,8.5411]